[Event "FIDE WYCC Girls U18 2023"]
[Site "Montesilvano"]
[Date "2023.11.15"]
[Round "3.1"]
[White "Matute Escobar, Roxanny"]
[Black "Starosta, Martyna"]
[Result "1-0"]
[ECO "C00"]
[WhiteElo "1995"]
[BlackElo "2208"]
[Annotator "ChessBase"]
[PlyCount "97"]
[EventDate "2023.11.13"]
[EventType "swiss"]
[EventCountry "ITA"]
[SourceTitle "playchess.com"]
[Source "ChessBase"]
[SourceQuality "1"]
[TimeControl "40/5400+30:1800+30"]

1. e4 {[%emt 0:00:03]} e6 {[%emt 0:00:05]} 2. d3 {[%emt 0:00:29]} c5 {[%emt 0:01:07]} 3. g3 {[%emt 0:00:48]} Nc6 {[%emt 0:00:21]} 4. Bg2 {[%emt 0:00:11]} g6 {[%emt 0:01:12]} 5. Nd2 {[%emt 0:01:03]} Bg7 {[%emt 0:00:19]} 6. Ngf3 {[%emt 0:01:03]} Nge7 {[%emt 0:02:02]} 7. O-O {[%emt 0:03:58]} O-O {[%emt 0:00:13]} 8. Re1 {[%emt 0:04:18]} e5 {[%emt 0:00:32]} 9. a4 {[%emt 0:05:26]} d5 {[%emt 0:08:06]} 10. exd5 {[%emt 0:01:18]} Nxd5 {[%emt 0:00:25]} 11. Nc4 {[%emt 0:02:45]} Re8 {[%emt 0:00:37]} 12. Ng5 {[%emt 0:07:12]} f5 {[%emt 0:16:51]} 13. f4 {[%emt 0:03:18]} h6 {[%emt 0:09:43]} 14. Nh3 {[%emt 0:01:08]} Kh7 {[%emt 0:09:13]} 15. c3 {[%emt 0:07:50]} Re7 {[%emt 0:09:48]} 16. fxe5 {[%emt 0:09:05]} Nxe5 {[%emt 0:01:30]} 17. Nf4 {[%emt 0:13:14]} Nxf4 {[%emt 0:04:32]} 18. Bxf4 {[%emt 0:01:06]} Nxc4 {[%emt 0:01:44]} 19. dxc4 {[%emt 0:04:02]} Rxe1+ {[%emt 0:05:10]} 20. Qxe1 {[%emt 0:00:06]} Qf6 {[%emt 0:05:36]} 21. Rd1 {[%emt 0:07:27]} g5 {[%emt 0:02:09]} 22. Bd6 {[%emt 0:09:36]} Be6 {[%emt 0:01:17]} 23. Bxc5 {[%emt 0:00:48]} Qf7 {[%emt 0:02:09]} 24. b3 {[%emt 0:04:18]} Re8 {[%emt 0:00:23]} 25. Qd2 {[%emt 0:01:09]} b6 {[%emt 0:01:01]} 26. Bd4 {[%emt 0:00:05]} Rd8 {[%emt 0:01:23]} 27. Qc2 {[%emt 0:00:30]} Rd6 {[%emt 0:03:16]} 28. Bxg7 {[%emt 0:01:46]} Rxd1+ {[%emt 0:00:02]} 29. Qxd1 {[%emt 0:00:07]} Qxg7 {[%emt 0:00:39]} 30. Qd4 {[%emt 0:00:15]} Qc7 {[%emt 0:01:33]} 31. Bd5 {[%emt 0:02:38]} Qd6 {[%emt 0:04:26]} 32. Qf6 {[%emt 0:02:13]} Qc5+ {[%emt 0:00:05]} 33. Kf1 {[%emt 0:00:04]} Bxd5 {[%emt 0:00:24]} 34. Qxf5+ {[%emt 0:00:06]} Kg7 {[%emt 0:00:15]} 35. Qe5+ {[%emt 0:00:32]} Kh7 {[%emt 0:01:11]} 36. cxd5 {[%emt 0:00:28]} b5 {[%emt 0:00:51]} 37. Qe4+ {[%emt 0:01:08]} Kg7 {[%emt 0:00:40]} 38. Qd4+ {[%emt 0:01:14]} Qxd4 {[%emt 0:00:06]} 39. cxd4 {[%emt 0:00:04]} bxa4 {[%emt 0:00:46]} 40. bxa4 {[%emt 0:00:00]} Kf7 {[%emt 0:00:00]} 41. Ke2 {[%emt 0:01:15]} Ke7 {[%emt 0:00:28]} 42. Ke3 {[%emt 0:00:17]} Kd6 {[%emt 0:00:08]} 43. Ke4 {[%emt 0:00:20]} g4 {[%emt 0:00:08]} 44. Kf5 {[%emt 0:00:42]} Kxd5 {[%emt 0:01:22]} 45. Kxg4 {[%emt 0:00:05]} Kxd4 {[%emt 0:00:10]} 46. Kh5 {[%emt 0:00:09]} a5 {[%emt 0:00:07]} 47. Kxh6 {[%emt 0:00:22]} Kc4 {[%emt 0:00:05]} 48. g4 {[%emt 0:00:04]} Kb4 {[%emt 0:00:04]} 49. g5 {[%emt 0:00:03]} 1-0

[Event "FIDE WYCC Girls U18 2023"]
[Site "Montesilvano"]
[Date "2023.11.15"]
[Round "3.2"]
[White "Balabayeva, Xeniya"]
[Black "Petricenco, Ana"]
[Result "1-0"]
[ECO "B30"]
[WhiteElo "2192"]
[BlackElo "1902"]
[Annotator "ChessBase"]
[PlyCount "83"]
[EventDate "2023.11.13"]
[EventType "swiss"]
[EventCountry "ITA"]
[SourceTitle "playchess.com"]
[Source "ChessBase"]
[SourceQuality "1"]
[TimeControl "40/5400+30:1800+30"]

1. e4 {[%emt 0:00:02]} c5 {[%emt 0:00:10]} 2. Nf3 {[%emt 0:00:07]} Nc6 {[%emt 0:00:07]} 3. Bb5 {[%emt 0:00:10]} e6 {[%emt 0:00:16]} 4. O-O {[%emt 0:00:14]} Nge7 {[%emt 0:00:11]} 5. Re1 {[%emt 0:00:28]} a6 {[%emt 0:00:23]} 6. Bf1 {[%emt 0:01:22]} h6 {[%emt 0:01:18]} 7. b3 {[%emt 0:12:25]} d6 {[%emt 0:16:08]} 8. Bb2 {[%emt 0:05:46]} e5 {[%emt 0:04:43]} 9. c3 {[%emt 0:09:43]} Ng6 {[%emt 0:05:18]} 10. d4 {[%emt 0:09:13]} Be7 {[%emt 0:02:11]} 11. Nbd2 {[%emt 0:01:22]} O-O {[%emt 0:05:04]} 12. Nc4 {[%emt 0:11:14]} Bg4 {[%emt 0:08:43]} 13. d5 {[%emt 0:05:16]} Nb8 {[%emt 0:04:15]} 14. Ne3 {[%emt 0:03:24]} Bd7 {[%emt 0:05:36]} 15. Nf5 {[%emt 0:03:46]} Bxf5 {[%emt 0:02:46]} 16. exf5 {[%emt 0:00:06]} Nh4 {[%emt 0:00:10]} 17. Bd3 {[%emt 0:08:09]} Nxf3+ {[%emt 0:01:50]} 18. Qxf3 {[%emt 0:00:05]} Nd7 {[%emt 0:00:06]} 19. Rad1 {[%emt 0:00:59]} b5 {[%emt 0:02:00]} 20. Bc2 {[%emt 0:03:59]} Re8 {[%emt 0:07:17]} 21. g3 {[%emt 0:02:42]} a5 {[%emt 0:01:46]} 22. h4 {[%emt 0:03:20]} c4 {[%emt 0:01:40]} 23. bxc4 {[%emt 0:01:18]} bxc4 {[%emt 0:00:07]} 24. Bc1 {[%emt 0:01:04]} Bf6 {[%emt 0:05:51]} 25. Re4 {[%emt 0:04:17]} Rc8 {[%emt 0:06:09]} 26. Ba4 {[%emt 0:04:29]} Re7 {[%emt 0:08:07]} 27. Bxd7 {[%emt 0:01:36]} Rxd7 {[%emt 0:00:11]} 28. Qh5 {[%emt 0:01:24]} Kh7 {[%emt 0:07:42]} 29. Kg2 {[%emt 0:00:54]} Qf8 {[%emt 0:00:45]} 30. Rh1 {[%emt 0:00:42]} Rc5 {[%emt 0:01:31]} 31. Qf3 {[%emt 0:01:52]} Rxd5 {[%emt 0:02:02]} 32. Rxc4 {[%emt 0:00:02]} Rc5 {[%emt 0:00:40]} 33. Rxc5 {[%emt 0:01:21]} dxc5 {[%emt 0:00:02]} 34. g4 {[%emt 0:00:08]} e4 {[%emt 0:01:15]} 35. Qxe4 {[%emt 0:00:13]} Bxc3 {[%emt 0:00:09]} 36. f6+ {[%emt 0:00:34]} g6 {[%emt 0:00:07]} 37. h5 {[%emt 0:00:59]} Bd2 {[%emt 0:01:21]} 38. hxg6+ {[%emt 0:00:30]} fxg6 {[%emt 0:00:04]} 39. Bxd2 {[%emt 0:00:13]} Rxd2 {[%emt 0:00:06]} 40. g5 {[%emt 0:00:00]} h5 {[%emt 0:00:00]} 41. Rxh5+ {[%emt 0:00:11]} Kg8 {[%emt 0:01:53]} 42. Qxg6+ {[%emt 0:00:05]} 1-0

[Event "FIDE WYCC Girls U18 2023"]
[Site "Montesilvano"]
[Date "2023.11.15"]
[Round "3.3"]
[White "Nguyen Hong Nhung"]
[Black "Allahverdiyeva, Ayan"]
[Result "0-1"]
[ECO "B94"]
[WhiteElo "1975"]
[BlackElo "2152"]
[Annotator "ChessBase"]
[PlyCount "90"]
[EventDate "2023.11.13"]
[EventType "swiss"]
[EventCountry "ITA"]
[SourceTitle "playchess.com"]
[Source "ChessBase"]
[SourceQuality "1"]
[TimeControl "40/5400+30:1800+30"]

1. e4 {[%emt 0:00:03]} c5 {[%emt 0:00:03]} 2. Nf3 {[%emt 0:00:06]} d6 {[%emt 0:00:03]} 3. d4 {[%emt 0:00:09]} cxd4 {[%emt 0:00:03]} 4. Nxd4 {[%emt 0:00:04]} Nf6 {[%emt 0:00:02]} 5. Nc3 {[%emt 0:00:09]} a6 {[%emt 0:00:01]} 6. Bg5 {[%emt 0:00:07]} Nbd7 {[%emt 0:00:04]} 7. Bc4 {[%emt 0:00:08]} Qb6 {[%emt 0:00:04]} 8. Bb3 {[%emt 0:00:07]} e6 {[%emt 0:00:31]} 9. Bxf6 {[%emt 0:00:08]} Nxf6 {[%emt 0:00:07]} 10. Qd2 {[%emt 0:00:07]} Be7 {[%emt 0:02:39]} 11. f4 {[%emt 0:00:31]} O-O {[%emt 0:17:56]} 12. O-O-O {[%emt 0:00:23]} Nd7 {[%emt 0:00:56]} 13. g4 {[%emt 0:00:41]} Nc5 {[%emt 0:01:34]} 14. g5 {[%emt 0:00:13]} Qc7 {[%emt 0:01:14]} 15. Rhe1 {[%emt 0:02:31]} b5 {[%emt 0:03:17]} 16. f5 {[%emt 0:00:33]} Kh8 {[%emt 0:07:42]} 17. f6 {[%emt 0:07:32]} gxf6 {[%emt 0:00:42]} 18. gxf6 {[%emt 0:00:23]} Bxf6 {[%emt 0:00:19]} 19. Rg1 {[%emt 0:13:14]} Bb7 {[%emt 0:07:00]} 20. Kb1 {[%emt 0:50:09]} b4 {[%emt 0:20:45]} 21. Nce2 {[%emt 0:02:53]} Nxe4 {[%emt 0:11:14]} 22. Qxb4 {[%emt 0:02:22]} a5 {[%emt 0:01:52]} 23. Qb5 {[%emt 0:01:43]} Nc5 {[%emt 0:04:13]} 24. Qc4 {[%emt 0:13:42]} Ba6 {[%emt 0:01:47]} 25. Nb5 {[%emt 0:00:07]} Bxb5 {[%emt 0:00:11]} 26. Qxb5 {[%emt 0:00:06]} a4 {[%emt 0:00:01]} 27. Rdf1 {[%emt 0:01:20]} Be5 {[%emt 0:00:21]} 28. Qc4 {[%emt 0:01:31]} axb3 {[%emt 0:00:14]} 29. cxb3 {[%emt 0:00:05]} Qb7 {[%emt 0:02:09]} 30. Nc3 {[%emt 0:01:58]} Qa6 {[%emt 0:00:54]} 31. Qxa6 {[%emt 0:01:46]} Rxa6 {[%emt 0:00:50]} 32. b4 {[%emt 0:00:06]} Na4 {[%emt 0:00:48]} 33. Nd1 {[%emt 0:00:18]} f5 {[%emt 0:00:31]} 34. h3 {[%emt 0:00:28]} Rc8 {[%emt 0:00:40]} 35. Rg2 {[%emt 0:01:16]} f4 {[%emt 0:00:07]} 36. Rc2 {[%emt 0:00:19]} Rxc2 {[%emt 0:00:00]} 37. Kxc2 {[%emt 0:00:00]} Nxb2 {[%emt 0:00:00]} 38. b5 {[%emt 0:00:15]} Rxa2 {[%emt 0:00:45]} 39. Kb3 {[%emt 0:00:00]} Ra1 {[%emt 0:00:00]} 40. Ne3 {[%emt 0:00:00]} Ra5 {[%emt 0:00:00]} 41. Ng2 {[%emt 0:01:24]} Rxb5+ {[%emt 0:05:42]} 42. Kc2 {[%emt 0:00:07]} Nc4 {[%emt 0:00:17]} 43. Kd3 {[%emt 0:00:11]} Ne3 {[%emt 0:00:04]} 44. Nxe3 {[%emt 0:00:06]} Rb3+ {[%emt 0:00:01]} 45. Ke4 {[%emt 0:00:17]} Rxe3# {[%emt 0:00:03]} 0-1

[Event "FIDE WYCC Girls U18 2023"]
[Site "Montesilvano"]
[Date "2023.11.15"]
[Round "3.4"]
[White "Zhurova, Anna"]
[Black "Luong, Hoang Tu Linh"]
[Result "0-1"]
[ECO "B90"]
[WhiteElo "2149"]
[BlackElo "1887"]
[Annotator "NA"]
[PlyCount "90"]
[EventDate "2023.11.13"]
[EventType "swiss"]
[EventCountry "ITA"]
[SourceTitle "playchess.com"]
[Source "ChessBase"]
[SourceQuality "1"]
[TimeControl "40/5400+30:1800+30"]

1. e4 {[%emt 0:00:01]} c5 {[%emt 0:00:09]} 2. Nf3 {[%emt 0:00:08]} d6 {[%emt 0:00:22]} 3. d4 {[%emt 0:00:09]} cxd4 {[%emt 0:00:08]} 4. Nxd4 {[%emt 0:00:12]} Nf6 {[%emt 0:00:08]} 5. Nc3 {[%emt 0:00:10]} a6 {[%emt 0:00:16]} 6. Be3 {[%emt 0:00:26]} e6 {[%emt 0:00:36]} 7. f3 {[%emt 0:01:00]} b5 {[%emt 0:02:08]} 8. Qd2 {[%emt 0:00:38]} Nbd7 {[%emt 0:01:10]} 9. g4 {[%emt 0:01:30]} h6 {[%emt 0:01:51]} 10. O-O-O {[%emt 0:04:27]} Bb7 {[%emt 0:00:51]} 11. h4 {[%emt 0:02:20]} b4 {[%emt 0:02:01]} 12. Na4 {[%emt 0:08:31]} d5 {[%emt 0:00:37]} 13. Rg1 {[%emt 0:02:09]} e5 {[%emt 0:11:35]} 14. g5 {[%emt 0:00:52]} hxg5 {[%emt 0:12:19]} 15. hxg5 {[%emt 0:00:05]} Nh5 {[%emt 0:01:29]} 16. Nb3 {[%emt 0:19:09]} d4 {[%emt 0:05:50]} 17. Bh3 {[%emt 0:00:08]} Bc6 {[%emt 0:05:39]} 18. Bxd7+ {[%emt 0:01:25]} Bxd7 {[%emt 0:00:58]} 19. Nac5 {[%emt 0:00:24]} a5 {[%emt 0:02:04]} 20. g6 {[%emt 0:04:59]} f6 {[%emt 0:10:23]} 21. Qe2 {[%emt 0:10:19]} Rc8 {[%emt 0:14:49]} 22. Nxd7 {[%emt 0:04:47]} Qxd7 {[%emt 0:00:38]} 23. Bxd4 {[%emt 0:06:55]} exd4 {[%emt 0:05:23]} 24. Rxd4 {[%emt 0:00:30]} Nf4 {[%emt 0:02:31]} 25. Qd2 {[%emt 0:02:02]} Qc7 {[%emt 0:00:51]} 26. Rd1 {[%emt 0:01:21]} Rh2 {[%emt 0:01:57]} 27. Qxh2 {[%emt 0:01:53]} Nd3+ {[%emt 0:00:10]} 28. R4xd3 {[%emt 0:00:06]} Qxh2 {[%emt 0:00:11]} 29. R3d2 {[%emt 0:00:02]} Qg3 {[%emt 0:04:09]} 30. Nxa5 {[%emt 0:00:30]} Qxg6 {[%emt 0:00:50]} 31. Nb3 {[%emt 0:00:06]} Qg3 {[%emt 0:01:50]} 32. Nd4 {[%emt 0:00:45]} g6 {[%emt 0:00:43]} 33. Rd3 {[%emt 0:00:21]} Qf2 {[%emt 0:00:46]} 34. Kb1 {[%emt 0:00:18]} Bh6 {[%emt 0:00:19]} 35. a3 {[%emt 0:00:54]} bxa3 {[%emt 0:01:15]} 36. Rxa3 {[%emt 0:00:22]} Be3 {[%emt 0:00:23]} 37. c3 {[%emt 0:00:20]} Bxd4 {[%emt 0:02:08]} 38. Rxd4 {[%emt 0:00:04]} Rb8 {[%emt 0:00:14]} 39. b4 {[%emt 0:00:36]} Qxf3 {[%emt 0:00:30]} 40. Kb2 {[%emt 0:00:00]} Rc8 {[%emt 0:00:00]} 41. Rd2 {[%emt 0:00:41]} Qe3 {[%emt 0:03:29]} 42. Rc2 {[%emt 0:00:13]} Qxe4 {[%emt 0:00:25]} 43. b5 {[%emt 0:00:04]} Qc4 {[%emt 0:00:27]} 44. Rb3 {[%emt 0:00:26]} Rb8 {[%emt 0:00:09]} 45. b6 {[%emt 0:00:04]} Qa6 {[%emt 0:00:09]} 0-1

[Event "FIDE WYCC Girls U18 2023"]
[Site "Montesilvano"]
[Date "2023.11.15"]
[Round "3.5"]
[White "Mungunzul, Bat-Erdene"]
[Black "Lindstad, Livia"]
[Result "1-0"]
[ECO "E32"]
[WhiteElo "2111"]
[BlackElo "1848"]
[Annotator "NA"]
[PlyCount "111"]
[EventDate "2023.11.13"]
[EventType "swiss"]
[EventCountry "ITA"]
[SourceTitle "playchess.com"]
[Source "ChessBase"]
[SourceQuality "1"]
[TimeControl "40/5400+30:1800+30"]

1. d4 {[%emt 0:00:03]} Nf6 {[%emt 0:00:12]} 2. c4 {[%emt 0:00:09]} e6 {[%emt 0:00:31]} 3. Nc3 {[%emt 0:00:12]} Bb4 {[%emt 0:00:23]} 4. Qc2 {[%emt 0:00:18]} O-O {[%emt 0:00:29]} 5. Bg5 {[%emt 0:00:23]} c5 {[%emt 0:00:41]} 6. dxc5 {[%emt 0:01:02]} Na6 {[%emt 0:00:23]} 7. a3 {[%emt 0:05:27]} Bxc3+ {[%emt 0:00:12]} 8. Qxc3 {[%emt 0:00:12]} Nxc5 {[%emt 0:00:25]} 9. Bxf6 {[%emt 0:09:00]} Qxf6 {[%emt 0:00:17]} 10. Qxf6 {[%emt 0:00:24]} gxf6 {[%emt 0:00:08]} 11. b4 {[%emt 0:00:50]} Na4 {[%emt 0:01:04]} 12. e3 {[%emt 0:03:16]} b6 {[%emt 0:00:48]} 13. Nf3 {[%emt 0:21:37]} Ba6 {[%emt 0:02:49]} 14. Nd2 {[%emt 0:03:58]} Rac8 {[%emt 0:04:49]} 15. Ne4 {[%emt 0:01:57]} Kg7 {[%emt 0:03:40]} 16. b5 {[%emt 0:03:40]} Bb7 {[%emt 0:00:45]} 17. Nd6 {[%emt 0:00:14]} Rc7 {[%emt 0:04:29]} 18. e4 {[%emt 0:01:26]} Ba8 {[%emt 0:08:24]} 19. Be2 {[%emt 0:01:59]} Nc5 {[%emt 0:08:38]} 20. f3 {[%emt 0:00:15]} Nb3 {[%emt 0:10:32]} 21. Rd1 {[%emt 0:02:08]} Rg8 {[%emt 0:02:56]} 22. Kf2 {[%emt 0:01:39]} Kf8 {[%emt 0:01:10]} 23. Rd3 {[%emt 0:00:59]} Nc5 {[%emt 0:04:15]} 24. Rd2 {[%emt 0:00:17]} Nb3 {[%emt 0:01:36]} 25. Rd3 {[%emt 0:04:54]} Nc5 {[%emt 0:00:30]} 26. Re3 {[%emt 0:00:20]} Ke7 {[%emt 0:04:54]} 27. Rd1 {[%emt 0:00:12]} Bb7 {[%emt 0:06:26]} 28. f4 {[%emt 0:03:57]} f5 {[%emt 0:06:27]} 29. Nxb7 {[%emt 0:01:23]} Nxe4+ {[%emt 0:00:50]} 30. Rxe4 {[%emt 0:02:02]} fxe4 {[%emt 0:00:08]} 31. Nd6 {[%emt 0:00:05]} f5 {[%emt 0:00:20]} 32. g4 {[%emt 0:02:12]} Rf8 {[%emt 0:06:14]} 33. a4 {[%emt 0:01:10]} fxg4 {[%emt 0:03:08]} 34. Kg3 {[%emt 0:00:53]} Rc5 {[%emt 0:06:12]} 35. Rd4 {[%emt 0:05:54]} e3 {[%emt 0:06:48]} 36. Ne4 {[%emt 0:06:42]} Rcf5 {[%emt 0:01:28]} 37. Nc3 {[%emt 0:00:11]} h5 {[%emt 0:00:58]} 38. Re4 {[%emt 0:01:47]} Kd8 {[%emt 0:01:17]} 39. Nd1 {[%emt 0:01:19]} R5f6 {[%emt 0:02:23]} 40. Nxe3 {[%emt 0:00:00]} d6 {[%emt 0:00:00]} 41. Nc2 {[%emt 0:07:15]} Kd7 {[%emt 0:09:16]} 42. Nb4 {[%emt 0:01:58]} Rg6 {[%emt 0:04:00]} 43. Kh4 {[%emt 0:01:26]} Rg7 {[%emt 0:02:41]} 44. Nc2 {[%emt 0:08:40]} d5 {[%emt 0:06:26]} 45. Rd4 {[%emt 0:09:47]} Ke7 {[%emt 0:02:19]} 46. Ne3 {[%emt 0:02:28]} dxc4 {[%emt 0:02:59]} 47. Rxc4 {[%emt 0:01:39]} Kf6 {[%emt 0:02:45]} 48. Rc6 {[%emt 0:04:11]} Re8 {[%emt 0:00:45]} 49. Bc4 {[%emt 0:01:51]} Rd7 {[%emt 0:03:21]} 50. Nd5+ {[%emt 0:02:26]} Kg7 {[%emt 0:00:58]} 51. Nc7 {[%emt 0:00:14]} Rh8 {[%emt 0:01:19]} 52. Nxe6+ {[%emt 0:00:10]} Kh7 {[%emt 0:00:20]} 53. Kxh5 {[%emt 0:02:08]} Rd2 {[%emt 0:00:41]} 54. Rc7+ {[%emt 0:00:10]} Kg8+ {[%emt 0:00:18]} 55. Kg6 {[%emt 0:00:04]} Rd8 {[%emt 0:01:33]} 56. Rg7# {[%emt 0:00:07]} 1-0

[Event "FIDE WYCC Girls U18 2023"]
[Site "Montesilvano"]
[Date "2023.11.15"]
[Round "3.6"]
[White "Shohradova, Lala"]
[Black "Mihelic, Vesna"]
[Result "0-1"]
[ECO "D53"]
[WhiteElo "1846"]
[BlackElo "2102"]
[Annotator "NA"]
[PlyCount "114"]
[EventDate "2023.11.13"]
[EventType "swiss"]
[EventCountry "ITA"]
[SourceTitle "playchess.com"]
[Source "ChessBase"]
[SourceQuality "1"]
[TimeControl "40/5400+30:1800+30"]

1. d4 {[%emt 0:00:03]} Nf6 {[%emt 0:00:07]} 2. c4 {[%emt 0:00:20]} e6 {[%emt 0:00:06]} 3. Nc3 {[%emt 0:02:30]} d5 {[%emt 0:00:07]} 4. Bg5 {[%emt 0:00:17]} Be7 {[%emt 0:00:10]} 5. e3 {[%emt 0:00:11]} b6 {[%emt 0:00:38]} 6. cxd5 {[%emt 0:03:07]} exd5 {[%emt 0:03:24]} 7. Bd3 {[%emt 0:05:03]} h6 {[%emt 0:05:56]} 8. Bh4 {[%emt 0:05:26]} O-O {[%emt 0:07:06]} 9. Nge2 {[%emt 0:02:16]} Bb7 {[%emt 0:04:47]} 10. O-O {[%emt 0:02:12]} c5 {[%emt 0:05:44]} 11. Rc1 {[%emt 0:02:59]} Nbd7 {[%emt 0:14:25]} 12. f3 {[%emt 0:15:11]} Re8 {[%emt 0:02:22]} 13. Qd2 {[%emt 0:06:50]} a6 {[%emt 0:04:22]} 14. Rfd1 {[%emt 0:08:13]} c4 {[%emt 0:04:25]} 15. Bb1 {[%emt 0:02:40]} b5 {[%emt 0:00:16]} 16. Re1 {[%emt 0:01:46]} Bc6 {[%emt 0:07:45]} 17. Nd1 {[%emt 0:03:44]} Qb6 {[%emt 0:06:06]} 18. Bf2 {[%emt 0:04:17]} Qb7 {[%emt 0:01:15]} 19. g4 {[%emt 0:05:09]} a5 {[%emt 0:03:43]} 20. h4 {[%emt 0:03:20]} Nf8 {[%emt 0:05:33]} 21. Ng3 {[%emt 0:02:33]} Ng6 {[%emt 0:03:41]} 22. Nf5 {[%emt 0:02:48]} Bb4 {[%emt 0:01:13]} 23. Nc3 {[%emt 0:03:26]} Ne7 {[%emt 0:03:36]} 24. g5 {[%emt 0:03:18]} hxg5 {[%emt 0:00:45]} 25. hxg5 {[%emt 0:00:01]} Nh5 {[%emt 0:02:44]} 26. Ng3 {[%emt 0:03:14]} Nxg3 {[%emt 0:00:49]} 27. Bxg3 {[%emt 0:00:00]} Ng6 {[%emt 0:00:50]} 28. Qh2 {[%emt 0:00:37]} Qe7 {[%emt 0:04:00]} 29. f4 {[%emt 0:04:34]} Bd6 {[%emt 0:04:20]} 30. Qh5 {[%emt 0:02:23]} b4 {[%emt 0:01:39]} 31. Nd1 {[%emt 0:00:11]} Qd7 {[%emt 0:02:56]} 32. Re2 {[%emt 0:03:51]} Ra6 {[%emt 0:00:48]} 33. Nf2 {[%emt 0:02:12]} Bb5 {[%emt 0:00:21]} 34. Ng4 {[%emt 0:01:22]} Kf8 {[%emt 0:00:42]} 35. Rh2 {[%emt 0:00:36]} Ke7 {[%emt 0:00:18]} 36. Ne5 {[%emt 0:01:17]} Bxe5 {[%emt 0:00:08]} 37. fxe5 {[%emt 0:00:25]} Rh8 {[%emt 0:00:01]} 38. Qf3 {[%emt 0:00:19]} Rxh2 {[%emt 0:00:23]} 39. Bxh2 {[%emt 0:00:01]} Nh4 {[%emt 0:01:16]} 40. Qf2 {[%emt 0:00:00]} Qg4+ {[%emt 0:00:00]} 41. Kh1 {[%emt 0:03:42]} c3 {[%emt 0:12:24]} 42. bxc3 {[%emt 0:04:39]} Rc6 {[%emt 0:01:07]} 43. e4 {[%emt 0:03:45]} Rxc3 {[%emt 0:08:41]} 44. Rxc3 {[%emt 0:04:29]} bxc3 {[%emt 0:00:28]} 45. exd5 {[%emt 0:01:34]} Be2 {[%emt 0:02:23]} 46. d6+ {[%emt 0:01:24]} Kd8 {[%emt 0:00:55]} 47. Bg3 {[%emt 0:05:25]} Qh3+ {[%emt 0:02:47]} 48. Bh2 {[%emt 0:05:44]} Bf3+ {[%emt 0:01:08]} 49. Kg1 {[%emt 0:00:01]} Bd5 {[%emt 0:00:39]} 50. Qg3 {[%emt 0:03:21]} Nf3+ {[%emt 0:00:08]} 51. Kf2 {[%emt 0:00:03]} Qxh2+ {[%emt 0:00:13]} 52. Qxh2 {[%emt 0:00:01]} Nxh2 {[%emt 0:00:02]} 53. Ke3 {[%emt 0:02:13]} Nf3 {[%emt 0:02:54]} 54. g6 {[%emt 0:00:45]} fxg6 {[%emt 0:00:32]} 55. e6 {[%emt 0:00:27]} Bxe6 {[%emt 0:01:03]} 56. Kxf3 {[%emt 0:00:02]} Bf5 {[%emt 0:00:20]} 57. Bxf5 {[%emt 0:00:03]} gxf5 {[%emt 0:00:05]} 0-1

[Event "FIDE WYCC Girls U18 2023"]
[Site "Montesilvano"]
[Date "2023.11.15"]
[Round "3.7"]
[White "Wikar, Martyna"]
[Black "Bhagyashree Patil"]
[Result "1-0"]
[ECO "D31"]
[WhiteElo "2228"]
[BlackElo "1830"]
[Annotator "ChessBase"]
[PlyCount "61"]
[EventDate "2023.11.13"]
[EventType "swiss"]
[EventCountry "ITA"]
[SourceTitle "playchess.com"]
[Source "ChessBase"]
[SourceQuality "1"]
[TimeControl "40/5400+30:1800+30"]

1. d4 {[%emt 0:00:12]} d5 {[%emt 0:00:08]} 2. c4 {[%emt 0:00:09]} e6 {[%emt 0:00:04]} 3. Nc3 {[%emt 0:00:12]} a6 {[%emt 0:00:03]} 4. cxd5 {[%emt 0:01:27]} exd5 {[%emt 0:00:04]} 5. Nf3 {[%emt 0:00:23]} Nf6 {[%emt 0:01:19]} 6. Bg5 {[%emt 0:00:13]} Be7 {[%emt 0:00:12]} 7. e3 {[%emt 0:00:57]} O-O {[%emt 0:02:08]} 8. Bd3 {[%emt 0:01:39]} b6 {[%emt 0:02:01]} 9. Qc2 {[%emt 0:04:15]} h6 {[%emt 0:02:20]} 10. h4 {[%emt 0:03:46]} c5 {[%emt 0:01:30]} 11. Ne5 {[%emt 0:02:07]} c4 {[%emt 0:08:45]} 12. Bf5 {[%emt 0:04:29]} b5 {[%emt 0:09:42]} 13. Bxc8 {[%emt 0:05:15]} Qxc8 {[%emt 0:00:22]} 14. Bxf6 {[%emt 0:00:26]} Bxf6 {[%emt 0:02:35]} 15. Nxd5 {[%emt 0:00:16]} Bd8 {[%emt 0:00:21]} 16. Qe4 {[%emt 0:08:02]} Ra7 {[%emt 0:06:03]} 17. O-O {[%emt 0:05:20]} Re8 {[%emt 0:10:00]} 18. g3 {[%emt 0:03:12]} Nc6 {[%emt 0:15:58]} 19. f4 {[%emt 0:07:35]} Ne7 {[%emt 0:04:57]} 20. f5 {[%emt 0:06:13]} Nc6 {[%emt 0:03:56]} 21. Rad1 {[%emt 0:13:45]} a5 {[%emt 0:10:26]} 22. Kh2 {[%emt 0:02:17]} Ra6 {[%emt 0:03:25]} 23. Qf4 {[%emt 0:06:03]} Nb4 {[%emt 0:02:02]} 24. Qf3 {[%emt 0:04:15]} Qa8 {[%emt 0:03:33]} 25. Nc3 {[%emt 0:03:54]} f6 {[%emt 0:02:48]} 26. Qh5 {[%emt 0:02:03]} Re7 {[%emt 0:00:44]} 27. Ng6 {[%emt 0:02:41]} Re8 {[%emt 0:01:16]} 28. e4 {[%emt 0:00:51]} Nd3 {[%emt 0:00:14]} 29. Nf4 {[%emt 0:01:07]} Bb6 {[%emt 0:01:11]} 30. Ncd5 {[%emt 0:03:49]} Bxd4 {[%emt 0:01:24]} 31. Nc7 {[%emt 0:01:12]} 1-0

[Event "FIDE WYCC Girls U18 2023"]
[Site "Montesilvano"]
[Date "2023.11.15"]
[Round "3.8"]
[White "Obada, Ema"]
[Black "Abrisqueta Zudaire, Leyre"]
[Result "0-1"]
[ECO "B33"]
[WhiteElo "2023"]
[BlackElo "2137"]
[Annotator "NA"]
[PlyCount "70"]
[EventDate "2023.11.13"]
[EventType "swiss"]
[EventCountry "ITA"]
[SourceTitle "playchess.com"]
[Source "ChessBase"]
[SourceQuality "1"]
[TimeControl "40/5400+30:1800+30"]

1. e4 {[%emt 0:00:03]} c5 {[%emt 0:00:08]} 2. Nf3 {[%emt 0:00:06]} Nc6 {[%emt 0:00:05]} 3. d4 {[%emt 0:00:06]} cxd4 {[%emt 0:00:18]} 4. Nxd4 {[%emt 0:00:05]} Nf6 {[%emt 0:00:37]} 5. Nc3 {[%emt 0:00:14]} e6 {[%emt 0:00:16]} 6. Nxc6 {[%emt 0:00:10]} bxc6 {[%emt 0:00:11]} 7. e5 {[%emt 0:00:07]} Nd5 {[%emt 0:00:07]} 8. Ne4 {[%emt 0:00:07]} Qc7 {[%emt 0:01:46]} 9. f4 {[%emt 0:00:34]} Qb6 {[%emt 0:02:11]} 10. c4 {[%emt 0:00:26]} Bb4+ {[%emt 0:03:43]} 11. Ke2 {[%emt 0:00:36]} f5 {[%emt 0:19:50]} 12. Nf2 {[%emt 0:03:00]} Ne7 {[%emt 0:04:49]} 13. a3 {[%emt 0:47:52]} Bc5 {[%emt 0:01:46]} 14. Nd3 {[%emt 0:00:09]} Bd4 {[%emt 0:03:53]} 15. Qc2 {[%emt 0:16:20]} c5 {[%emt 0:02:54]} 16. Rb1 {[%emt 0:03:34]} Nc6 {[%emt 0:05:01]} 17. Kd1 {[%emt 0:04:08]} Rb8 {[%emt 0:07:38]} 18. Bd2 {[%emt 0:06:46]} a5 {[%emt 0:02:41]} 19. Kc1 {[%emt 0:03:05]} Qa6 {[%emt 0:07:44]} 20. Be2 {[%emt 0:01:48]} Bb7 {[%emt 0:02:57]} 21. Bf3 {[%emt 0:02:35]} O-O {[%emt 0:01:33]} 22. Re1 {[%emt 0:01:48]} a4 {[%emt 0:05:06]} 23. Bd1 {[%emt 0:02:44]} Ra8 {[%emt 0:00:11]} 24. g4 {[%emt 0:02:56]} Ne7 {[%emt 0:02:36]} 25. h3 {[%emt 0:01:03]} Be4 {[%emt 0:00:50]} 26. Be3 {[%emt 0:01:05]} Nc6 {[%emt 0:06:06]} 27. Bxd4 {[%emt 0:01:03]} cxd4 {[%emt 0:00:33]} 28. gxf5 {[%emt 0:00:38]} Na5 {[%emt 0:03:11]} 29. Be2 {[%emt 0:01:08]} Nb3+ {[%emt 0:01:50]} 30. Kd1 {[%emt 0:00:02]} exf5 {[%emt 0:01:00]} 31. Bf1 {[%emt 0:00:36]} Rac8 {[%emt 0:00:33]} 32. Ke2 {[%emt 0:00:59]} Rxc4 {[%emt 0:00:26]} 33. Qd1 {[%emt 0:00:05]} Rfc8 {[%emt 0:01:14]} 34. Kf2 {[%emt 0:00:23]} Rc2+ {[%emt 0:00:14]} 35. Re2 {[%emt 0:00:43]} Qxd3 {[%emt 0:01:15]} 0-1